bitfinex/quotes_ETHUSD_20250406
["timestamp","ask_amount","ask_price","bid_price","bid_amount"]
[1743929305959,7.82008,1790.3,1790.1,5.286]
[1743929306234,3.90897,1790.8,1790.4,3.90962]
[1743929306432,3.90897,1790.8,1790.5,5.286]
[1743929306737,3.90893,1790.8,1790.5,5.286]
[1743929307522,7.81796,1790.8,1790.5,5.286]
[1743929307704,3.90893,1790.8,1790.5,5.286]
[1743929307911,3.90893,1790.8,1790.5,6.287132]
[1743929308116,8.27306865,1790.9,1790.5,10.196652]
[1743929308515,4.37770197,1790.9,1790.5,10.196652]
[1743929308940,4.37770197,1790.9,1790.6,0.30968327]
[1743929310610,4.37770197,1790.9,1790.6,1.13028327]
[1743929312534,3.95865,1790.9,1790.6,2.2629768]
[1743929319110,3.91017,1790.2,1790.1,0.74957005]
[1743929319310,3.91107,1789.8,1789.6,5.0]
[1743929319547,3.91131,1789.7,1789.5,0.87042796]
[1743929319729,3.91148,1789.6,1789.4,6.0958]
[1743929319940,3.91148,1789.6,1789.4,6.70538]
[1743929320252,4.33520274,1789.8,1789.4,6.70538]
[1743929321313,4.33520274,1789.8,1789.4,1.42038]
[1743929321518,4.33520274,1789.8,1789.5,5.284]
[1743929322760,4.33520274,1789.8,1789.5,6.15475046]
[1743929322962,4.33520274,1789.8,1789.5,6.91226351]
[1743929323462,3.91094,1789.9,1789.5,6.91226351]
[1743929324630,3.91094,1789.9,1789.6,5.285]
[1743929326963,3.91094,1789.9,1789.7,0.20737434]
[1743929327165,3.91094,1789.9,1789.6,5.285]
[1743929327361,3.91094,1789.9,1789.7,0.20737434]
[1743929327569,3.91094,1789.9,1789.6,5.285]
[1743929327756,3.91094,1789.9,1789.7,0.20737434]
[1743929327958,3.91094,1789.9,1789.6,5.285]
[1743929328266,3.91094,1789.9,1789.7,0.20737434]
[1743929328568,3.91094,1789.9,1789.6,5.285]
[1743929328766,3.91094,1789.9,1789.7,0.20737434]
[1743929328967,0.7868,1790.1,1789.7,5.46102177]
[1743929329168,7.82065,1790.2,1789.8,0.20704536]
[1743929329465,3.91042,1790.1,1789.8,0.20704536]
[1743929330039,7.82102,1790.1,1789.8,0.20704536]
[1743929333377,4.72817129,1790.2,1789.5,0.87075046]
[1743929333378,3.91083,1789.9,1789.5,0.87075046]
[1743929333696,12.00029865,1789.6,1789.5,0.87075046]
[1743929334237,12.00029865,1789.6,1789.5,1.02754475]
[1743929335067,12.00029865,1789.6,1789.5,0.87075046]
[1743929335275,13.59146252,1789.6,1789.5,0.87075046]
[1743929335772,14.0100849,1789.6,1789.5,0.87075046]
[1743929336154,14.0100849,1789.6,1789.5,1.01374515]
[1743929337772,12.81706252,1789.6,1789.5,1.01374515]
[1743929337982,11.22589865,1789.6,1789.5,6.41774515]
[1743929339766,11.22589865,1789.6,1789.5,1.01374515]
[1743929340063,11.22589865,1789.6,1789.5,6.41574515]
[1743929340861,3.91134,1789.7,1789.5,6.41574515]
[1743929340862,4.31441865,1789.7,1789.5,6.41574515]
[1743929341214,8.59666,1789.8,1789.5,6.41574515]
[1743929341215,3.91105,1789.8,1789.5,6.41574515]
[1743929341772,3.91105,1789.8,1789.5,5.54499469]
[1743929348474,3.91105,1789.8,1789.5,6.56717616]
[1743929350320,3.91127,1789.7,1789.5,5.54499469]
[1743929350806,7.82275,1789.7,1789.5,5.54499469]
[1743929352610,3.91127,1789.7,1789.5,5.54499469]
[1743929356231,3.9111,1789.8,1789.5,5.54499469]
[1743929359115,7.8223,1789.8,1789.5,5.54499469]
[1743929359415,3.91137,1789.7,1789.5,5.54499469]
[1743929359610,3.91105,1789.8,1789.5,5.54499469]
[1743929365130,6.91088,1789.9,1789.5,5.54499469]
[1743929365425,3.91064,1790.0,1789.6,0.8304]
[1743929365624,4.70448,1790.2,1789.7,3.91126]
[1743929365829,9.02743416,1790.2,1789.8,0.8304]
[1743929366025,9.02743416,1790.2,1789.9,5.35]
[1743929366232,3.91018,1790.2,1789.9,5.49096197]
[1743929366800,3.90997,1790.3,1789.9,5.49096197]
[1743929366801,7.82003,1790.3,1789.9,5.49096197]
[1743929367001,8.681463,1790.3,1789.9,5.49096197]
[1743929367405,3.9102,1790.2,1789.9,5.49096197]
[1743929373048,4.771453,1790.3,1789.9,5.49096197]
[1743929373421,3.91002,1790.3,1789.9,5.49096197]
[1743929373632,3.91002,1790.3,1790.0,0.8203]
[1743929373936,3.91002,1790.3,1790.0,0.96093308]
[1743929377330,7.82014,1790.3,1790.0,0.96093308]
[1743929377849,3.91019,1790.2,1790.0,0.96093308]
[1743929378047,3.91039,1790.1,1790.0,0.14063308]
[1743929379553,3.91039,1790.1,1790.0,5.46563308]
[1743929382252,5.486611,1790.2,1790.0,5.46563308]
[1743929382581,9.396951,1790.2,1790.0,5.46563308]
[1743929382735,3.91039,1790.1,1790.0,5.46563308]
[1743929383069,5.486611,1790.2,1790.0,5.46563308]
[1743929383270,9.396991,1790.2,1790.0,5.46563308]
[1743929383452,3.91039,1790.1,1790.0,5.46563308]
[1743929384071,5.486611,1790.2,1790.0,5.46563308]
[1743929384239,4.692211,1790.2,1790.0,5.46563308]
[1743929384432,3.90997,1790.3,1790.0,5.46563308]
[1743929384831,3.91039,1790.1,1790.0,0.14063308]
[1743929385035,3.91039,1790.1,1790.0,5.319]
[1743929385267,3.91039,1790.1,1790.0,0.12814275]
[1743929385469,3.91039,1790.1,1790.0,5.32]
[1743929385665,4.301429,1790.1,1790.0,5.44814275]
[1743929391560,8.119529,1790.1,1790.0,5.44814275]
[1743929391755,8.119529,1790.1,1790.0,5.43614275]
[1743929399498,12.43394765,1790.1,1790.0,0.12814275]
[1743929399700,3.91104,1789.9,1789.6,0.8134]
[1743929399867,3.91105,1789.8,1789.7,5.293]
[1743929400597,3.91104,1789.9,1789.7,5.293]
[1743929400767,3.91104,1789.9,1789.6,0.8134]
[1743929400970,3.91104,1789.9,1789.7,5.292]
[1743929403172,3.91105,1789.8,1789.7,5.292]
[1743929403707,3.91128,1789.7,1789.5,30.131]
[1743929404004,3.91148,1789.6,1789.5,30.131]
[1743929404204,3.91148,1789.6,1789.5,35.42]
[1743929408422,3.91106,1789.8,1789.5,35.42]
[1743929408744,3.91106,1789.8,1789.6,0.7786]
[1743929411227,3.91148,1789.6,1789.5,30.131]
[1743929411415,3.91148,1789.6,1789.5,35.42]
[1743929413901,3.91148,1789.6,1789.5,30.26133683]
[1743929414106,3.91148,1789.6,1789.5,35.55033683]
[1743929415832,3.91148,1789.6,1789.5,10.41933683]
[1743929417630,3.91148,1789.6,1789.5,5.41933683]
[1743929420408,4.693755,1789.6,1789.5,5.41933683]
[1743929423951,3.91148,1789.6,1789.5,5.41933683]
[1743929431253,3.91148,1789.6,1789.5,5.56518417]
[1743929432553,6.91107,1789.8,1789.6,0.767]
[1743929432954,6.91107,1789.8,1789.7,0.27561834]
[1743929433330,6.91107,1789.8,1789.6,0.767]
[1743929433533,6.91107,1789.8,1789.7,0.27561834]
[1743929433849,3.91146,1789.7,1789.5,5.289]
[1743929434054,7.82293,1789.7,1789.5,5.289]
[1743929434431,3.91148,1789.6,1789.5,5.289]
[1743929436855,3.91146,1789.7,1789.5,5.289]
[1743929437053,3.91146,1789.7,1789.5,5.8946]
[1743929437660,3.91146,1789.7,1789.5,5.289]
[1743929437847,6.91111,1789.8,1789.5,5.289]
[1743929438247,6.91111,1789.8,1789.6,0.767]
[1743929438639,3.91085,1789.9,1789.6,0.767]
[1743929439670,3.91062,1790.0,1789.6,0.767]
[1743929440672,7.8214,1790.0,1789.6,0.767]
[1743929443969,7.8214,1790.0,1789.7,0.27529899]
[1743929444370,3.91084,1789.9,1789.6,0.767]
[1743929444539,3.91084,1789.9,1789.8,0.27496187]
[1743929444741,3.91084,1789.9,1789.7,0.27529899]
[1743929444943,3.91084,1789.9,1789.8,0.27496187]
[1743929445343,3.91084,1789.9,1789.6,0.767]
[1743929445543,3.91084,1789.9,1789.8,0.27496187]
[1743929445743,3.91084,1789.9,1789.7,0.27529899]
[1743929446052,3.91084,1789.9,1789.6,0.767]
[1743929446253,3.91084,1789.9,1789.8,0.27496187]
[1743929446462,3.91084,1789.9,1789.6,0.767]
[1743929446679,3.91084,1789.9,1789.8,0.27496187]
[1743929446854,3.91084,1789.9,1789.6,0.767]
[1743929447061,3.91084,1789.9,1789.8,0.27496187]
[1743929447264,3.91084,1789.9,1789.6,0.767]
[1743929447572,3.91084,1789.9,1789.8,0.27496187]
[1743929448076,3.91084,1789.9,1789.6,0.767]
[1743929448262,3.91084,1789.9,1789.8,0.27496187]
[1743929448448,3.91084,1789.9,1789.6,0.767]
[1743929448842,3.91084,1789.9,1789.7,0.27529899]
[1743929449045,3.91084,1789.9,1789.8,0.7587]
[1743929449362,3.91084,1789.9,1789.8,1.03365548]
[1743929450388,3.91041,1790.1,1789.8,1.03365548]
[1743929450572,4.63749494,1790.1,1789.9,5.288]
[1743929450888,3.91061,1790.0,1789.9,5.288]
[1743929455086,3.91061,1790.0,1789.8,0.7587]
[1743929455301,3.91061,1790.0,1789.9,5.288]
[1743929457593,3.91092,1789.9,1789.7,0.8067]
[1743929457777,3.91092,1789.9,1789.8,5.288]
[1743929458964,3.91092,1789.9,1789.8,5.56290446]
[1743929462993,4.693075,1789.9,1789.8,0.27490446]
[1743929463199,8.499275,1789.9,1789.8,0.27490446]
[1743929463363,7.82292,1789.7,1789.5,25.136]
[1743929463792,7.82292,1789.7,1789.6,0.25210577]
[1743929464194,3.91146,1789.7,1789.4,5.288]
[1743929464372,3.91146,1789.7,1789.6,0.25210577]
[1743929464562,3.91146,1789.7,1789.4,5.288]
[1743929464563,4.95275494,1789.7,1789.5,0.25244297]
[1743929464767,3.91146,1789.7,1789.6,0.25210577]
[1743929465098,3.91105,1789.8,1789.5,0.819]
[1743929465266,3.91105,1789.8,1789.6,0.25210577]
[1743929465472,6.91088,1789.9,1789.6,0.25210577]
[1743929465693,3.91082,1790.0,1789.6,0.25210577]
[1743929469999,7.8216,1790.0,1789.6,0.25210577]
[1743929470299,3.91085,1789.9,1789.6,0.25210577]
[1743929478704,3.91085,1789.9,1789.7,0.8166]
[1743929478904,3.91085,1789.9,1789.8,5.287]
[1743929479308,3.91085,1789.9,1789.8,5.53840647]
[1743929481105,3.91061,1790.0,1789.8,5.53840647]
[1743929482617,7.82137,1790.0,1789.8,5.53840647]
[1743929483215,8.986107,1790.0,1789.8,5.53840647]
[1743929483616,3.91083,1789.9,1789.8,5.53840647]
[1743929496528,3.91061,1790.0,1789.8,5.53840647]
[1743929496716,3.91061,1790.0,1789.8,6.34160647]
[1743929497032,10.82091,1790.1,1789.8,6.34160647]
[1743929498433,3.91065,1790.0,1789.8,6.34160647]
[1743929499028,3.91083,1789.9,1789.8,5.53840647]
[1743929500403,3.91065,1790.0,1789.8,5.53840647]
[1743929500835,3.91083,1789.9,1789.8,5.53840647]
[1743929504106,3.91065,1790.0,1789.8,5.53840647]
[1743929504306,5.13447396,1790.0,1789.8,5.53840647]
[1743929504922,9.04522396,1790.0,1789.8,5.53840647]
[1743929505536,5.13447396,1790.0,1789.8,5.53840647]
[1743929505837,9.04523396,1790.0,1789.8,5.53840647]
[1743929507533,6.91041,1790.1,1789.9,0.8235]
[1743929507703,6.91041,1790.1,1789.9,1.07451313]
[1743929509106,10.82095,1790.1,1789.9,1.07451313]
[1743929509505,3.91061,1790.0,1789.9,1.07451313]
[1743929515350,3.9102,1790.2,1789.9,1.07451313]
[1743929520461,3.9102,1790.2,1789.9,2.10175644]
[1743929521657,3.9102,1790.2,1789.9,1.07451313]
[1743929527053,3.0,1790.5,1790.0,0.771]
[1743929527262,3.90985,1790.4,1790.1,0.771]
[1743929527556,7.81975,1790.4,1790.2,5.284]
[1743929527745,7.81975,1790.4,1790.2,5.53253389]
[1743929528150,3.90985,1790.4,1790.2,5.53253389]
[1743929531842,7.81979,1790.4,1790.2,5.53253389]
[1743929532166,3.90995,1790.3,1790.2,5.53253389]
[1743929538758,5.03405857,1790.3,1790.2,5.53253389]
[1743929538964,5.03405857,1790.3,1790.2,5.53153389]
[1743929539134,8.03405857,1790.3,1790.2,0.24853389]
[1743929539327,8.03405857,1790.3,1790.2,5.283]
[1743929539532,3.90979,1790.4,1790.2,6.3552316]
[1743929543568,3.90954,1790.5,1790.2,6.3552316]
[1743929544140,7.33743698,1790.6,1790.2,10.2653716]
[1743929544344,11.24693698,1790.6,1790.2,10.2653716]
[1743929544540,6.9093,1790.6,1790.2,9.4415716]
[1743929544745,3.9093,1790.6,1790.3,0.7574]
[1743929545072,3.9093,1790.6,1790.3,1.0054322]
[1743929545473,7.81876,1790.6,1790.3,1.0054322]
[1743929545674,3.9093,1790.6,1790.3,1.0054322]
[1743929545845,3.9093,1790.6,1790.3,2.02528942]
[1743929547566,7.81877,1790.6,1790.3,2.02528942]
[1743929548483,3.9093,1790.6,1790.3,2.02528942]
[1743929549874,7.8188,1790.6,1790.3,2.02528942]
[1743929550181,3.90965,1790.5,1790.3,2.02528942]
[1743929558100,7.81875,1790.6,1790.3,2.02528942]
[1743929560606,3.9093,1790.6,1790.3,2.02528942]
[1743929562895,3.8314,1790.8,1790.3,5.99096222]
[1743929562896,7.74029,1790.8,1790.3,5.99096222]
[1743929563070,7.74029,1790.8,1790.4,4.50875622]
[1743929563071,3.90909,1790.7,1790.4,4.50875622]
[1743929563271,3.90909,1790.7,1790.4,0.84665401]
[1743929565167,6.90889,1790.8,1790.5,0.7527]
[1743929565392,6.90889,1790.8,1790.6,5.52788423]
[1743929565597,3.0,1790.8,1790.6,5.52788423]
[1743929566524,3.0,1790.8,1790.6,6.54689065]
[1743929568487,7.86745,1790.9,1790.6,6.54689065]
[1743929569207,3.90887,1790.8,1790.6,6.54689065]
[1743929571612,3.95865,1790.9,1790.6,6.54689065]
[1743929573016,7.86747,1790.9,1790.6,6.54689065]
[1743929573192,3.90887,1790.8,1790.6,6.54689065]
[1743929573395,3.90887,1790.8,1790.7,0.61712721]
[1743929573593,3.90887,1790.8,1790.7,0.86355595]
[1743929574326,3.95865,1790.9,1790.7,0.86355595]
[1743929576912,0.05,1790.9,1790.8,0.7911]
[1743929577238,0.05,1790.9,1790.8,1.03698581]
[1743929577732,0.05,1790.9,1790.8,1.59329511]
[1743929580622,0.05,1790.9,1790.8,5.50215511]
[1743929580794,0.05,1790.9,1790.8,1.59329511]
[1743929582630,0.05,1790.9,1790.8,5.50215511]
[1743929582985,0.05,1790.9,1790.8,6.10798975]
[1743929583225,0.05,1790.9,1790.8,6.06455511]
[1743929583530,0.05,1790.9,1790.8,6.12038665]
[1743929583690,0.05,1790.9,1790.8,6.06455511]
[1743929587534,0.05,1790.9,1790.8,8.65444083]
[1743929589336,0.05,1790.9,1790.8,17.81444083]
[1743929589744,0.05,1790.9,1790.8,21.81444083]
[1743929589924,0.55,1791.2,1791.1,3.90821]
[1743929590089,0.55,1791.2,1791.1,16.93385172]
[1743929590295,0.05,1791.9,1791.7,0.8261]
[1743929590526,0.05,1791.9,1791.8,5.278]
[1743929590720,0.05,1791.9,1791.8,5.51826501]
[1743929591315,0.05,1791.9,1791.8,9.97494501]
[1743929591525,0.05,1791.9,1791.8,6.06826501]
[1743929592709,0.05,1791.9,1791.8,9.97494501]
[1743929592936,0.05,1791.9,1791.8,6.06826501]
[1743929593455,0.05,1791.9,1791.8,9.97494501]
[1743929594365,0.05,1791.9,1791.8,10.03074292]
[1743929594532,0.05,1791.9,1791.8,9.97494501]
[1743929594863,0.05,1791.9,1791.8,6.06826501]
[1743929595526,0.05,1791.9,1791.8,9.97494501]
[1743929596473,0.05,1791.9,1791.8,6.06826501]
[1743929597872,0.05,1791.9,1791.8,9.97494501]
[1743929598061,0.05,1791.9,1791.8,10.03074631]
[1743929598670,0.05,1791.9,1791.8,9.97494501]
[1743929599967,0.05,1791.9,1791.8,0.24026501]
[1743929600173,0.05,1791.9,1791.8,5.51526501]
[1743929600326,0.05,1791.9,1791.8,5.275]
[1743929600531,0.05,1791.9,1791.8,5.51469648]
[1743929601127,0.05,1791.9,1791.8,10.50113613]
[1743929601375,0.05,1791.9,1791.8,9.47717962]
[1743929602248,0.05,1791.9,1791.8,5.57049962]
[1743929602936,0.05,1791.9,1791.8,5.51469648]
[1743929603879,0.05,1791.9,1791.8,9.42137648]
[1743929604049,0.05,1791.9,1791.8,9.47717929]
[1743929604455,0.05,1791.9,1791.8,10.21477648]
[1743929605133,0.05,1791.9,1791.8,10.76477648]
[1743929606874,0.05,1791.9,1791.8,35.86977648]
[1743929614277,0.05,1791.9,1791.8,25.34469648]
[1743929614472,0.05,1791.9,1791.8,31.16769648]
[1743929615681,0.05,1791.9,1791.8,35.07437648]
[1743929616015,0.05,1791.9,1791.8,35.84387648]
[1743929627999,0.05,1791.9,1791.8,42.00387648]
[1743929633942,0.05,1791.9,1791.8,42.10592868]
[1743929634157,0.05,1791.9,1791.8,45.10592868]
[1743929634847,0.05,1791.9,1791.8,49.10592868]
[1743929637353,0.05,1791.9,1791.8,49.53186823]
[1743929638450,0.05,1791.9,1791.8,49.80928474]
[1743929638830,0.05,1791.9,1791.8,49.53186823]
[1743929640352,0.05,1791.9,1791.8,45.53186823]
[1743929643156,0.05,1791.9,1791.8,49.53186823]
[1743929644627,1e-05,1791.9,1791.8,49.53186823]
[1743929645122,0.7627,1792.8,1792.6,3.90487]
[1743929645350,0.7627,1792.8,1792.7,6.209487]
[1743929645551,0.7627,1792.8,1792.7,6.44504386]
[1743929648565,3.90409,1793.0,1792.7,6.44504386]
[1743929648954,3.90386,1793.1,1792.7,6.44504386]
[1743929649343,3.90386,1793.1,1792.7,10.34976386]
[1743929649539,3.90386,1793.1,1792.7,9.95927686]
[1743929651636,0.5623,1793.0,1792.7,9.95927686]
[1743929652366,0.5623,1793.0,1792.8,3.90449]
[1743929652740,0.5623,1793.0,1792.9,0.23626492]
[1743929653138,0.5623,1793.0,1792.8,3.90449]
[1743929653338,0.5623,1793.0,1792.9,0.62582631]
[1743929654251,0.5623,1793.1,1792.9,0.62582631]
[1743929654672,0.5623,1793.1,1792.9,4.53000631]
[1743929655543,0.5623,1793.1,1792.9,0.62582631]
[1743929656361,0.5623,1793.1,1793.0,0.55]
[1743929656864,0.5623,1793.1,1793.0,1.29187928]
[1743929657667,0.5623,1793.1,1793.0,0.23387865]
[1743929657870,3.9035,1793.3,1793.0,0.23387865]
[1743929657871,4.4658,1793.3,1793.0,0.23387865]
[1743929658045,4.4658,1793.3,1793.1,5.268]
[1743929658381,4.4658,1793.3,1793.2,0.23248221]
[1743929658758,4.4658,1793.3,1793.1,5.268]
[1743929659074,4.4658,1793.3,1793.2,0.23248221]
[1743929659263,8.36938,1793.3,1793.1,5.268]
[1743929659470,4.46593,1793.2,1793.1,5.268]
[1743929667082,0.5623,1793.2,1793.1,5.268]
[1743929667452,4.4655,1793.4,1793.1,5.268]
[1743929667993,3.903,1793.5,1793.1,6.185206]
[1743929668292,0.5623,1793.5,1793.2,0.55]
[1743929668593,8.368,1793.6,1793.2,0.55]
[1743929668975,8.368,1793.6,1793.3,0.23178289]
[1743929669688,3.90299,1793.5,1793.3,0.23178289]
[1743929670799,4.46507,1793.6,1793.3,0.23178289]
[1743929671471,8.368,1793.6,1793.3,0.28754043]
[1743929671781,8.368,1793.6,1793.3,0.23178289]
[1743929672391,3.90299,1793.5,1793.3,0.23178289]
[1743929674292,4.46507,1793.6,1793.3,0.23178289]
[1743929674597,8.368,1793.6,1793.3,0.23178289]
[1743929675513,3.90298,1793.5,1793.3,0.23178289]
[1743929677018,4.46507,1793.6,1793.3,0.23178289]
[1743929677724,8.36799,1793.6,1793.3,0.23178289]
[1743929678217,4.46507,1793.6,1793.3,0.23178289]
[1743929678591,0.5623,1793.6,1793.3,4.13515289]
[1743929678979,3.0,1793.8,1793.5,3.90297]
[1743929678980,0.5623,1793.8,1793.5,3.90297]
[1743929679308,3.95217,1793.9,1793.7,3.90254]
[1743929679309,0.05,1793.9,1793.7,3.90254]
[1743929679614,0.05,1793.9,1793.6,10.72202084]
[1743929679815,0.05,1793.9,1793.8,0.22981257]
[1743929680014,0.05,1793.9,1793.8,3.90233]
[1743929680227,0.05,1793.9,1793.8,0.22981257]
[1743929680581,0.05,1793.9,1793.8,0.77981257]
[1743929681426,0.05,1793.9,1793.8,0.22981257]
[1743929681743,0.05,1793.9,1793.7,0.55]
[1743929681897,0.05,1793.9,1793.8,5.49481257]
[1743929684023,4.46378,1794.2,1793.9,0.55]
[1743929684319,3.90176,1794.1,1794.0,0.22914183]
[1743929685330,4.46376,1794.2,1794.0,0.22914183]
[1743929685820,3.90167,1794.1,1794.0,0.22914183]
[1743929686185,3.90167,1794.1,1793.8,5.265]
[1743929686501,3.90167,1794.1,1793.9,0.23364435]
[1743929687954,8.36538,1794.2,1793.9,0.23364435]
[1743929688146,3.90169,1794.1,1793.9,0.23364435]
[1743929690255,4.87649742,1794.2,1793.9,0.23364435]
[1743929690415,4.87649742,1794.2,1793.9,0.28938129]
[1743929690611,4.31419742,1794.2,1793.9,0.28938129]
[1743929690853,4.31419742,1794.2,1793.9,1.25739448]
[1743929691056,4.31419742,1794.2,1793.9,0.28938128]
[1743929691237,4.31419742,1794.2,1793.9,0.83938128]
[1743929691442,4.31419742,1794.2,1793.9,0.78364435]
[1743929691965,4.31419742,1794.2,1793.9,0.8393798]
[1743929692262,4.4636,1794.3,1794.0,0.55]
[1743929692662,4.4636,1794.3,1794.1,0.23297318]
[1743929692967,4.4636,1794.3,1794.2,5.263]
[1743929693259,4.4636,1794.3,1794.2,5.49520803]
[1743929693578,3.90119,1794.4,1794.2,5.49520803]
[1743929693871,4.46354,1794.3,1794.2,5.49520803]
[1743929695229,3.90124,1794.3,1794.2,5.49520803]
[1743929695830,4.32554591,1794.3,1794.2,5.49520803]
[1743929696868,3.90124,1794.3,1794.2,5.49520803]
[1743929697570,3.90119,1794.4,1794.2,5.49520803]
[1743929698458,3.90081,1794.5,1794.2,5.49520803]
[1743929699485,7.80177,1794.5,1794.2,5.49520803]
[1743929700190,5.42149445,1794.6,1794.3,0.55]
[1743929700514,4.85919445,1794.6,1794.3,0.78118129]
[1743929701081,3.90083,1794.5,1794.3,0.78118129]
[1743929701611,3.90102,1794.4,1794.3,0.23118129]
[1743929701771,4.85923445,1794.6,1794.3,5.49218129]
[1743929701970,4.85923445,1794.6,1794.4,0.7878]
[1743929702170,4.85923445,1794.6,1794.4,1.01864586]
[1743929702471,3.9008,1794.5,1794.4,0.23084586]
[1743929703317,4.85923445,1794.6,1794.4,0.23084586]
[1743929703500,0.55,1794.6,1794.4,0.23084586]
[1743929703683,4.45061,1794.6,1794.4,0.23084586]
[1743929704279,0.55,1794.6,1794.4,0.23084586]
[1743929705873,0.55,1794.6,1794.4,4.13184586]
[1743929706100,0.55,1794.6,1794.4,0.23084586]
[1743929706911,0.55,1794.6,1794.4,1.04564586]
[1743929708523,0.55,1794.6,1794.4,26.11564586]
[1743929711615,5.01294,1794.6,1794.4,25.30084586]
[1743929711803,8.01294,1794.6,1794.5,5.26]
[1743929711997,8.01294,1794.6,1794.5,5.48997536]
[1743929715108,7.45064,1794.6,1794.5,5.48997536]
[1743929715309,9.18894328,1794.6,1794.5,5.48997536]
[1743929716418,8.63894328,1794.6,1794.5,0.22997536]
[1743929718633,7.46332,1794.4,1794.3,5.26]
[1743929721216,7.46332,1794.4,1794.0,25.069]
[1743929721425,7.80316,1794.2,1794.1,5.26]
[1743929721932,3.90167,1794.1,1794.0,25.069]
[1743929722134,3.90167,1794.1,1794.0,30.329]
[1743929723735,8.300517,1794.1,1794.0,25.069]
[1743929724224,8.70807753,1794.1,1794.0,25.069]
[1743929724450,8.70807753,1794.1,1793.3,25.071]
[1743929724451,0.5623,1793.9,1793.3,25.071]
[1743929724610,4.46509,1793.6,1793.3,25.071]
[1743929724805,4.46509,1793.6,1793.4,5.26]
[1743929725227,3.90298,1793.5,1793.4,5.26]
[1743929725636,3.9032,1793.4,1793.3,25.071]
[1743929725939,3.9032,1793.4,1793.3,30.331]
[1743929726339,4.32396697,1793.4,1793.3,30.331]
[1743929726641,7.32396697,1793.4,1793.3,25.071]
[1743929726843,7.88626697,1793.4,1793.3,30.331]
[1743929728116,3.90298,1793.5,1793.3,30.331]
[1743929728117,3.0,1793.5,1793.3,30.331]
[1743929728317,3.0,1793.5,1793.3,31.1007]
[1743929728544,6.90306,1793.5,1793.3,30.331]
[1743929729221,6.90306,1793.5,1793.4,0.21362799]
[1743929730228,7.32316904,1793.5,1793.4,0.21362799]
[1743929730657,7.88546904,1793.5,1793.4,0.21362799]
[1743929732233,7.32316904,1793.5,1793.4,0.21362799]
[1743929733262,3.42010904,1793.5,1793.4,0.21362799]
[1743929736765,7.32308904,1793.5,1793.4,0.21362799]
[1743929737150,3.42010904,1793.5,1793.4,1.02542799]
[1743929740750,4.46483,1793.8,1793.4,4.92860799]
[1743929740751,3.90244,1793.8,1793.4,4.92860799]
[1743929740954,3.0,1793.7,1793.4,4.92860799]
[1743929741572,3.0,1793.7,1793.5,0.55]
[1743929741878,3.0,1793.7,1793.6,0.21294929]
[1743929744446,0.41319618,1793.8,1793.6,0.21294929]
[1743929744646,3.0,1793.8,1793.7,5.262]
[1743929744859,6.90211,1793.9,1793.7,5.47433427]
[1743929745062,10.80441,1793.9,1793.7,5.47433427]
[1743929745380,6.90211,1793.9,1793.7,6.30723427]
[1743929746384,10.80438,1793.9,1793.7,6.30723427]
[1743929747099,11.22606321,1793.9,1793.7,6.30723427]
[1743929748608,7.32379321,1793.9,1793.7,6.30723427]
[1743929749907,3.90233,1793.8,1793.7,0.21233427]
[1743929750203,3.90233,1793.8,1793.7,5.261]
[1743929750390,3.90233,1793.8,1793.7,5.47313565]
[1743929750909,7.32379321,1793.9,1793.7,5.47313565]
[1743929751091,7.32379321,1793.9,1793.7,6.27553565]
[1743929752892,4.32379321,1793.9,1793.7,6.27553565]
[1743929754493,0.42168321,1793.9,1793.7,6.27553565]
[1743929754737,7.46463,1793.8,1793.7,0.21213565]
[1743929755092,3.9028,1793.6,1793.4,5.261]
[1743929755287,3.9026,1793.7,1793.4,5.261]
[1743929755591,10.80531,1793.7,1793.4,5.261]
[1743929755786,6.9026,1793.7,1793.4,5.261]
[1743929758195,10.80532,1793.7,1793.4,5.261]
[1743929758894,6.9026,1793.7,1793.5,0.1949366]
[1743929760339,3.90276,1793.6,1793.5,0.1949366]
[1743929761889,4.46506,1793.6,1793.5,5.4559366]
[1743929765335,8.601826,1793.6,1793.5,5.4559366]
[1743929772395,7.46506,1793.6,1793.5,5.4559366]
[1743929772615,3.9026,1793.7,1793.5,5.4559366]
[1743929773904,3.90276,1793.6,1793.5,5.4559366]
[1743929774202,4.46506,1793.6,1793.5,0.1949366]
[1743929774534,4.46506,1793.6,1793.5,5.261]
[1743929774805,4.46506,1793.6,1793.5,5.44078362]
[1743929775263,3.90276,1793.6,1793.5,5.44078362]
[1743929782940,7.683296,1793.6,1793.5,0.17978362]
[1743929783109,8.245596,1793.6,1793.5,5.44078362]
[1743929783314,8.245596,1793.6,1793.5,5.261]
[1743929783629,8.245596,1793.6,1793.5,5.44081979]
[1743929786540,8.245596,1793.6,1793.5,0.17981979]
[1743929786934,3.90298,1793.5,1793.4,5.261]
[1743929788852,3.90298,1793.5,1793.4,5.4408929]
[1743929790332,6.90276,1793.6,1793.4,6.2477929]
[1743929790534,10.80568,1793.6,1793.4,6.2477929]
[1743929791244,3.90298,1793.5,1793.4,6.2477929]
[1743929793441,3.90298,1793.5,1793.4,5.4408929]
[1743929793819,3.90298,1793.5,1793.4,0.1798929]
[1743929794055,4.46528,1793.5,1793.4,0.1798929]
[1743929794252,5.602084,1793.5,1793.4,0.1798929]
[1743929797355,3.90298,1793.5,1793.4,0.1798929]
[1743929815880,10.80567,1793.6,1793.4,0.1798929]
[1743929816465,3.90298,1793.5,1793.4,0.1798929]
[1743929820608,6.90283,1793.6,1793.4,0.1798929]
[1743929821304,10.80574,1793.6,1793.4,0.1798929]
[1743929821511,3.90298,1793.5,1793.4,0.1798929]
[1743929822481,6.90283,1793.6,1793.4,0.1798929]
[1743929822681,3.90256,1793.7,1793.5,0.8042]
[1743929822911,6.90256,1793.7,1793.6,0.17770058]
[1743929823086,3.90256,1793.7,1793.6,0.17770058]